bitfinex/quotes_ETHUSD_20240810
["timestamp","ask_amount","ask_price","bid_price","bid_amount"]
[1723290695431,3.0,2639.1,2638.7,1.131]
[1723290695612,1.89454,2639.2,2638.7,1.131]
[1723290695794,2.3847,2639.1,2638.3,19.56]
[1723290695999,1.89496,2638.6,2638.3,19.56]
[1723290696226,1.89496,2638.6,2638.3,21.86428]
[1723290696422,1.89491,2638.7,2638.3,21.86428]
[1723290696622,1.89491,2638.7,2638.3,22.99528]
[1723290697703,3.78984,2638.7,2638.3,22.99528]
[1723290698238,1.89475,2638.9,2638.5,1.131]
[1723290698395,1.89475,2638.9,2638.6,2.3518]
[1723290698750,3.0,2639.0,2638.7,1.131]
[1723290698903,3.78925,2639.1,2638.7,1.131]
[1723290699101,4.89465,2639.0,2638.7,1.131]
[1723290700639,3.78901,2639.3,2638.7,24.96592319]
[1723290700938,1.89451,2639.2,2638.7,24.96592319]
[1723290701338,1.89451,2639.2,2638.8,0.22696224]
[1723290701702,1.89451,2639.2,2638.7,24.89013]
[1723290701899,1.89451,2639.2,2638.9,0.22689229]
[1723290702208,1.89451,2639.2,2639.0,0.22682235]
[1723290702515,1.89451,2639.2,2638.8,0.87568367]
[1723290702740,1.89451,2639.2,2639.1,0.22675242]
[1723290702904,1.89451,2639.2,2638.7,20.691]
[1723290703233,1.89459,2639.1,2638.8,2.493773]
[1723290703439,1.89466,2639.0,2638.7,20.691]
[1723290703636,1.89448,2639.3,2638.7,20.691]
[1723290704436,1.89458,2639.1,2638.7,20.691]
[1723290704622,1.89458,2639.1,2638.7,23.184779]
[1723290706246,1.89458,2639.1,2638.8,19.56]
[1723290707157,1.89446,2639.3,2638.8,19.56]
[1723290707527,1.89451,2639.2,2638.8,19.56]
[1723290709953,1.89451,2639.2,2638.9,2.271]
[1723290710831,4.32821,2639.8,2639.2,2.271]
[1723290711163,2.4341,2640.0,2639.3,1.131]
[1723290711322,3.22875575,2640.0,2639.3,1.131]
[1723290711523,1.89428,2639.6,2639.3,1.131]
[1723290711725,1.89427,2639.6,2639.3,1.131]
[1723290711933,1.89411,2639.8,2639.4,2.271]
[1723290713157,3.0,2639.9,2639.4,2.271]
[1723290713158,4.89401,2639.9,2639.4,2.271]
[1723290713329,4.89401,2639.9,2639.4,2.99765]
[1723290713330,1.89401,2639.9,2639.4,2.99765]
[1723290713530,4.89401,2639.9,2639.5,1.131]
[1723290714144,1.89384,2640.2,2639.8,2.271]
[1723290714539,1.89387,2640.1,2639.8,2.271]
[1723290715563,1.89368,2640.4,2639.8,2.271]
[1723290715564,1.89368,2640.4,2639.9,1.131]
[1723290715763,1.89368,2640.4,2640.2,2.271]
[1723290716310,2.48693015,2640.8,2640.3,1.131]
[1723290716570,1.89338,2640.8,2640.3,1.35588237]
[1723290717278,3.78681,2640.8,2640.3,1.35588237]
[1723290717438,1.89338,2640.8,2640.3,1.35588237]
[1723290717838,1.89338,2640.8,2640.4,2.271]
[1723290718145,1.89338,2640.8,2640.5,1.131]
[1723290718539,1.89338,2640.8,2640.6,0.22435432]
[1723290720465,1.89343,2640.7,2640.6,0.22435432]
[1723290720663,3.78686,2640.7,2640.6,0.22435432]
[1723290720873,1.89359,2640.5,2640.1,3.402]
[1723290721839,3.78723,2640.5,2640.1,3.402]
[1723290722038,1.89359,2640.5,2640.1,3.402]
[1723290722468,1.89359,2640.5,2640.1,1.131]
[1723290722469,1.89373,2640.3,2640.1,1.131]
[1723290724304,1.89361,2640.5,2640.1,1.131]
[1723290725707,3.78725,2640.5,2640.1,1.131]
[1723290726203,2.572335,2640.5,2640.1,1.131]
[1723290727211,4.465975,2640.5,2640.1,1.131]
[1723290727997,1.89365,2640.4,2640.1,1.131]
[1723290729474,1.89372,2640.3,2640.1,1.131]
[1723290729697,2.3403255,2640.3,2639.9,21.831]
[1723290730174,1.89393,2640.1,2639.9,21.831]
[1723290730374,1.89393,2640.1,2639.8,1.131]
[1723290731274,1.89393,2640.1,2639.9,0.21736993]
[1723290731717,1.89373,2640.3,2639.9,0.21736993]
[1723290732201,1.89373,2640.3,2640.0,1.131]
[1723290732612,1.89373,2640.3,2640.1,0.21745484]
[1723290736286,3.78751,2640.3,2640.1,0.21745484]
[1723290736618,1.89373,2640.3,2640.1,0.21745484]
[1723290737820,1.89379,2640.2,2640.1,0.21745484]
[1723290738323,1.89388,2640.1,2639.8,20.691]
[1723290738520,1.89388,2640.1,2639.9,0.21755427]
[1723290740960,1.89373,2640.3,2639.9,0.21755427]
[1723290741139,3.78751,2640.3,2639.9,0.21755427]
[1723290741562,1.89379,2640.2,2639.9,0.21755427]
[1723290741874,1.89379,2640.2,2639.9,19.77755427]
[1723290743686,3.7875,2640.3,2639.9,19.77755427]
[1723290743982,1.89383,2640.2,2639.9,19.77755427]
[1723290744585,2.4851,2640.4,2639.9,0.21755427]
[1723290744586,1.89393,2640.0,2639.9,0.21755427]
[1723290744886,3.78786,2640.0,2639.9,0.21755427]
[1723290745853,6.27296,2640.0,2639.9,0.21755427]
[1723290747458,8.16689,2640.0,2639.9,0.21755427]
[1723290747649,1.89429,2639.5,2639.4,19.56]
[1723290747987,3.78837,2639.7,2639.4,0.21819192]
[1723290749143,1.89429,2639.5,2639.4,0.21819192]
[1723290751196,1.89429,2639.5,2639.2,23.1542]
[1723290751352,1.89429,2639.5,2639.4,0.21819192]
[1723290751551,1.89429,2639.5,2639.2,23.1542]
[1723290751854,1.89429,2639.5,2639.3,0.21826183]
[1723290752184,1.89429,2639.5,2639.2,23.1542]
[1723290752346,1.89429,2639.5,2639.4,0.21819192]
[1723290752549,1.89429,2639.5,2639.2,23.1542]
[1723290752749,1.89429,2639.5,2639.3,0.21826183]
[1723290752955,1.89429,2639.5,2639.2,23.1542]
[1723290753161,1.89429,2639.5,2639.4,0.21819192]
[1723290753384,1.89429,2639.5,2639.3,0.21826183]
[1723290753582,1.89429,2639.5,2639.4,0.21819192]
[1723290754290,1.89438,2639.4,2639.2,23.1542]
[1723290754483,1.89438,2639.4,2639.3,0.21826183]
[1723290754688,1.89438,2639.4,2639.2,23.1542]
[1723290754854,1.89438,2639.4,2639.3,0.21826183]
[1723290755055,1.89438,2639.4,2639.2,23.1542]
[1723290755268,1.89438,2639.4,2639.3,0.21838865]
[1723290755470,1.89438,2639.4,2639.2,23.1542]
[1723290755684,1.89438,2639.4,2639.3,0.21838865]
[1723290755889,1.89438,2639.4,2639.2,23.1542]
[1723290756087,1.89438,2639.4,2639.3,0.21838865]
[1723290756295,1.89438,2639.4,2639.2,23.1542]
[1723290756591,1.89438,2639.4,2639.3,0.21838865]
[1723290756757,1.89438,2639.4,2639.3,19.77838865]
[1723290756955,1.89438,2639.4,2639.3,19.56]
[1723290757155,1.89438,2639.4,2639.3,19.77838865]
[1723290761805,3.78876,2639.4,2639.3,19.77838865]
[1723290762773,3.78876,2639.4,2639.3,0.21838865]
[1723290763109,1.89451,2639.2,2639.1,19.56]
[1723290763294,1.89451,2639.2,2639.1,19.77906454]
[1723290764484,3.78902,2639.2,2639.1,19.77906454]
[1723290767482,1.8944,2639.4,2639.1,22.04506454]
[1723290768269,3.78883,2639.4,2639.1,22.04506454]
[1723290768686,3.78883,2639.4,2639.2,19.56]
[1723290769115,3.78883,2639.4,2639.3,0.21903423]
[1723290769409,1.89444,2639.3,2639.2,19.56]
[1723290775519,3.78888,2639.3,2639.2,19.56]
[1723290776454,3.78888,2639.3,2639.2,19.77915606]
[1723290777419,8.862838,2639.3,2639.2,0.21915606]
[1723290777581,11.862838,2639.3,2639.2,0.21915606]
[1723290777915,1.89496,2638.6,2638.5,19.56]
[1723290778111,1.89496,2638.6,2638.5,19.77964567]
[1723290778422,1.89496,2638.6,2638.5,0.21964567]
[1723290778610,7.95818,2638.6,2638.5,0.21964567]
[1723290778930,1.89545,2637.9,2637.8,2.2723]
[1723290779284,1.89545,2637.9,2637.8,2.49243554]
[1723290779893,1.89538,2638.0,2637.8,2.49243554]
[1723290780515,1.8953,2638.1,2637.8,2.49243554]
[1723290780732,1.89542,2638.0,2637.8,2.49243554]
[1723290781026,1.8953,2638.1,2637.8,2.49243554]
[1723290781325,3.0,2638.4,2637.8,2.49243554]
[1723290781326,1.89518,2638.3,2638.0,2.2723]
[1723290781628,1.89518,2638.3,2638.1,0.22129845]
[1723290781835,3.7904,2638.3,2638.1,0.22129845]
[1723290782040,1.89504,2638.5,2638.1,1.35229845]
[1723290782328,1.89504,2638.5,2638.3,1.131]
[1723290782531,1.89504,2638.5,2638.4,0.22102504]
[1723290782829,1.89495,2638.6,2638.4,0.22102504]
[1723290782996,4.8949,2638.7,2638.4,0.22102504]
[1723290783196,1.8949,2638.7,2638.5,2.2723]
[1723290783423,3.78984,2638.7,2638.5,2.2723]
[1723290783623,3.78984,2638.7,2638.6,0.22088511]
[1723290784105,3.78984,2638.7,2638.5,2.2723]
[1723290784434,1.89506,2638.5,2637.9,2.2723]
[1723290784729,1.89511,2638.4,2637.9,2.76948336]
[1723290786130,3.79025,2638.4,2637.9,2.76948336]
[1723290786428,1.89511,2638.4,2637.9,2.76948336]
[1723290787126,1.89503,2638.5,2638.1,2.2723]
[1723290787335,1.89509,2638.4,2638.1,2.2723]
[1723290787489,3.79023,2638.4,2638.1,2.2723]
[1723290787701,1.89509,2638.4,2638.1,2.2723]
[1723290788542,3.79023,2638.4,2638.1,2.2723]
[1723290789041,1.89509,2638.4,2638.1,2.2723]
[1723290790341,1.89509,2638.4,2638.1,2.49953]
[1723290791239,1.89498,2638.6,2638.1,2.49953]
[1723290791460,3.78998,2638.6,2638.2,0.22089959]
[1723290792839,1.89498,2638.6,2638.2,0.22089959]
[1723290793046,1.89513,2638.4,2638.2,0.22089959]
[1723290794638,1.89515,2638.3,2638.2,0.22089959]
[1723290794942,4.169328,2638.3,2638.2,0.22089959]
[1723290795126,1.89544,2637.9,2637.8,2.3001]
[1723290797357,1.89544,2637.9,2637.4,2.3001]
[1723290798571,1.89544,2637.9,2637.5,19.56]
[1723290799339,1.89544,2637.9,2637.5,21.935597]
[1723290799759,1.89533,2638.1,2637.6,2.3001]
[1723290800162,1.89517,2638.3,2637.6,2.3001]
[1723290800467,3.79038,2638.3,2637.7,2.3001]
[1723290800624,1.89517,2638.3,2637.7,2.3001]
[1723290800826,1.89517,2638.3,2637.8,0.41957]
[1723290801258,3.79038,2638.3,2637.8,0.41957]
[1723290801653,1.89517,2638.3,2637.8,0.41957]
[1723290802066,1.89517,2638.3,2637.9,2.3001]
[1723290802664,1.89523,2638.2,2637.9,2.3001]
[1723290804168,1.89517,2638.3,2637.9,2.3001]
[1723290804369,1.89524,2638.2,2637.9,21.8601]
[1723290805833,1.89524,2638.2,2637.9,22.9911]
[1723290806342,1.89524,2638.2,2638.0,0.22110299]
[1723290807069,1.89517,2638.3,2638.0,0.22110299]
[1723290807270,1.8953,2638.1,2638.0,0.22110299]
[1723290810373,1.8953,2638.1,2638.0,19.78110299]
[1723290811255,3.0,2638.6,2638.1,2.4988]
[1723290811557,1.89504,2638.5,2638.2,0.22099764]
[1723290811875,1.89504,2638.5,2638.3,1.131]
[1723290812171,1.89511,2638.4,2638.3,1.131]
[1723290812669,3.79011,2638.5,2638.3,1.131]
[1723290813659,1.89495,2638.6,2638.3,1.131]
[1723290813860,2.48801351,2639.6,2638.6,2.4988]
[1723290813861,1.89478,2638.9,2638.6,2.4988]
[1723290814061,1.89459,2639.1,2638.8,1.131]
[1723290814268,1.89459,2639.1,2638.9,2.4988]
[1723290815378,1.89447,2639.3,2638.9,22.0588]
[1723290815697,3.78897,2639.3,2639.0,1.131]
[1723290815976,1.89447,2639.3,2639.0,1.131]
[1723290816172,1.89432,2639.5,2639.0,1.131]
[1723290816341,3.78867,2639.5,2639.0,1.131]
[1723290816539,3.78867,2639.5,2639.2,1.131]
[1723290816734,1.89438,2639.4,2639.2,1.131]
[1723290817671,1.89438,2639.4,2639.0,0.0757803]
[1723290818380,1.89444,2639.3,2638.9,22.0588]
[1723290818546,1.89444,2639.3,2638.9,23.16966367]
[1723290819248,1.89444,2639.3,2639.0,19.56]
[1723290821495,1.89444,2639.3,2639.1,0.21929517]
[1723290821970,3.78894,2639.3,2639.1,0.21929517]
[1723290822764,1.89451,2639.2,2639.1,0.21929517]
[1723290823150,1.89444,2639.3,2639.1,0.21929517]
[1723290825190,1.89444,2639.3,2639.1,19.77929517]
[1723290826351,1.89451,2639.2,2639.1,19.77929517]
[1723290826548,3.78902,2639.2,2639.1,19.77929517]
[1723290826787,4.167922,2639.2,2639.1,19.77929517]
[1723290828288,3.78902,2639.2,2639.1,19.77929517]
[1723290828801,1.89451,2639.2,2639.1,19.77929517]
[1723290829033,3.78902,2639.2,2639.1,19.77929517]
[1723290831056,3.78902,2639.2,2639.1,0.21929517]
[1723290831502,3.78902,2639.2,2638.5,21.9838]
[1723290831503,1.89477,2638.9,2638.5,21.9838]
[1723290831662,1.89477,2638.9,2638.6,2.19838]
[1723290832815,1.89484,2638.8,2638.6,2.19838]
[1723290833027,1.89487,2638.7,2638.5,21.9838]
[1723290833187,3.78979,2638.7,2638.5,21.9838]
[1723290834089,1.89515,2638.4,2638.2,2.4238]
[1723290834284,1.89515,2638.4,2638.2,21.9838]
[1723290835514,1.89514,2638.4,2638.2,21.9838]
[1723290835700,1.89511,2638.4,2638.2,21.9838]
[1723290836030,1.89498,2638.6,2638.2,21.9838]
[1723290836416,1.89498,2638.6,2638.3,0.2197568]
[1723290837702,1.89498,2638.6,2638.4,1.131]
[1723290838202,1.89498,2638.6,2638.5,0.21961687]
[1723290849427,1.89447,2639.3,2638.6,2.4314]
[1723290849630,1.89462,2639.1,2638.8,1.131]
[1723290849829,1.89462,2639.1,2638.9,2.4314]
[1723290850053,1.89447,2639.3,2638.9,3.74004841]
[1723290850263,1.89451,2639.2,2639.0,1.131]
[1723290850427,1.89459,2639.1,2638.9,3.74004841]
[1723290850626,1.89459,2639.1,2638.9,2.4314]
[1723290851363,1.89459,2639.1,2639.0,0.21967649]
[1723290853755,6.81476,2639.1,2639.0,0.21967649]
[1723290854084,3.7896,2638.8,2638.7,19.56]
[1723290857178,6.7896,2638.8,2638.7,19.56]
[1723290857378,7.658034,2638.8,2638.7,19.56]
[1723290857752,2.3572,2638.7,2638.1,19.56]
[1723290857952,1.89527,2638.2,2637.9,2.4314]
[1723290858581,1.89509,2638.4,2637.9,2.67454]
[1723290858964,1.89523,2638.2,2637.9,2.67454]
[1723290860192,1.89509,2638.4,2637.9,2.67454]
[1723290860492,3.79023,2638.4,2637.9,2.67454]
[1723290860687,1.89509,2638.4,2637.9,2.67454]
[1723290860994,1.89509,2638.4,2638.0,0.267454]
[1723290861193,1.89504,2638.5,2638.0,0.267454]
[1723290862286,1.89515,2638.4,2637.9,2.4314]
[1723290862587,4.89515,2638.4,2637.9,2.4314]
[1723290864162,1.89524,2638.2,2637.9,2.4314]
[1723290864362,1.8952,2638.3,2637.9,2.4314]
[1723290865694,1.8952,2638.3,2637.9,2.864098]
[1723290865996,6.79013,2638.5,2637.9,2.864098]
[1723290866288,6.79011,2638.5,2637.9,2.864098]
[1723290866502,4.89505,2638.5,2638.0,0.21362845]
[1723290866681,1.89505,2638.5,2638.0,0.7109521]
[1723290866871,1.89505,2638.5,2638.0,0.78675701]
[1723290867068,3.79011,2638.5,2638.1,2.4314]
[1723290867474,3.79011,2638.5,2638.2,0.21348848]
[1723290868171,1.89505,2638.5,2638.2,0.21348848]
[1723290869974,3.79011,2638.5,2638.2,0.21348848]
[1723290870507,1.89515,2638.3,2638.2,0.21348848]
[1723290871006,1.89515,2638.3,2637.9,2.4597]
[1723290871309,1.89515,2638.3,2638.2,0.21348848]
[1723290871510,1.89515,2638.3,2637.9,2.4597]
[1723290871713,1.89515,2638.3,2638.2,0.21348848]
[1723290871872,1.89515,2638.3,2637.9,2.4597]
[1723290872072,1.89515,2638.3,2638.2,0.21348848]
[1723290872272,1.89515,2638.3,2637.9,2.4597]
[1723290872776,1.89515,2638.3,2638.0,0.21362845]
[1723290873610,1.89523,2638.2,2638.0,0.21362845]
[1723290877809,1.89523,2638.2,2638.0,1.34462845]
[1723290878021,1.89517,2638.3,2638.0,1.34462845]
[1723290880099,1.89523,2638.2,2638.0,1.34462845]
[1723290881641,1.89523,2638.2,2638.0,20.90462845]
[1723290882322,1.89511,2638.4,2638.0,20.90462845]
[1723290882518,1.89517,2638.3,2638.0,20.90462845]
[1723290888644,1.89525,2638.2,2638.0,20.90462845]
[1723290892740,1.89511,2638.4,2638.0,20.90462845]
[1723290892741,1.89512,2638.4,2638.0,20.90462845]
[1723290892948,1.89526,2638.2,2638.0,20.90462845]
[1723290893452,3.79053,2638.2,2638.0,20.90462845]
[1723290893657,1.89526,2638.2,2638.0,20.90462845]
[1723290894161,3.79053,2638.2,2638.0,20.90462845]
[1723290894553,1.89526,2638.2,2638.0,20.90462845]
[1723290895418,1.8953,2638.1,2638.0,20.90462845]
[1723290896642,1.89526,2638.2,2638.0,20.90462845]
[1723290908043,1.89526,2638.2,2638.0,23.2410613]
[1723290908280,0.59390976,2638.6,2638.1,1.89529]
[1723290908456,1.89487,2638.7,2638.5,1.131]
[1723290908655,3.7898,2638.7,2638.5,1.131]
[1723290908850,1.89487,2638.7,2638.6,0.20631665]
[1723290909674,1.89487,2638.7,2638.3,1.131]
[1723290909979,1.89487,2638.7,2638.6,0.20631665]
[1723290910184,1.89487,2638.7,2638.3,1.131]
[1723290910343,1.89487,2638.7,2638.6,0.20631665]
[1723290910545,1.89487,2638.7,2638.3,1.131]
[1723290910745,1.89487,2638.7,2638.6,0.20631665]
[1723290911256,1.89487,2638.7,2638.3,1.131]
[1723290911716,1.89487,2638.7,2638.4,0.20645658]
[1723290914159,4.8948,2638.8,2638.4,0.20645658]
[1723290914382,4.8948,2638.8,2638.4,19.76645658]
[1723290914677,4.8948,2638.8,2638.5,1.131]
[1723290914845,4.8948,2638.8,2638.5,1.33738661]
[1723290916673,3.0,2638.8,2638.5,1.33738661]
[1723290917471,1.89479,2638.9,2638.6,2.2668]
[1723290917688,1.89479,2638.9,2638.6,2.47311665]
[1723290917886,1.89478,2638.9,2638.6,2.47311665]
[1723290918097,3.78956,2638.9,2638.6,2.47311665]
[1723290918293,3.0,2638.8,2638.6,2.47311665]
[1723290918595,3.78956,2638.9,2638.6,2.47311665]
[1723290918805,3.0,2638.8,2638.6,2.47311665]
[1723290918992,4.8948,2638.8,2638.6,2.47311665]
[1723290919604,3.0,2638.8,2638.6,2.47311665]
[1723290920086,3.78956,2638.9,2638.6,2.47311665]
[1723290920265,3.0,2638.8,2638.6,2.47311665]
[1723290921202,4.8948,2638.8,2638.6,2.47311665]
[1723290921397,3.0,2638.8,2638.6,2.47311665]
[1723290921567,1.8948,2638.8,2638.6,2.47311665]
[1723290921765,4.8948,2638.8,2638.6,2.47311665]
[1723290922095,3.0,2638.8,2638.6,2.47311665]
[1723290922392,1.89477,2638.9,2638.6,2.47311665]
[1723290924996,4.89466,2639.0,2638.7,1.131]
[1723290925375,4.89466,2639.0,2638.8,0.20595395]
[1723290925576,1.89466,2639.0,2638.8,0.20595395]
[1723290925777,1.89466,2639.0,2638.7,1.131]
[1723290926000,1.89466,2639.0,2638.9,0.205884]
[1723290926205,1.89466,2639.0,2638.8,0.20595395]
[1723290926506,4.89453,2639.2,2638.9,0.205884]
[1723290926732,1.89465,2639.0,2638.7,1.131]
[1723290927204,3.78935,2639.0,2638.7,1.131]
[1723290927400,3.732323,2639.2,2638.6,2.2668]
[1723290927611,3.78988,2638.6,2638.5,19.56]
[1723290929274,1.89505,2638.5,2638.2,2.2668]
[1723290929973,1.89509,2638.4,2638.2,2.2668]
[1723290930768,1.89516,2638.3,2638.1,1.131]
[1723290931293,1.89509,2638.4,2638.1,1.131]
[1723290934502,3.79023,2638.4,2638.1,1.131]
[1723290934696,1.89523,2638.2,2638.1,1.131]
[1723290935290,1.89523,2638.2,2638.1,20.691]
[1723290937626,1.89523,2638.2,2637.6,21.9329]
[1723290937627,1.89551,2637.8,2637.6,21.9329]
[1723290937929,1.89559,2637.7,2637.4,1.131]
[1723290940985,1.89547,2637.9,2637.6,1.131]
[1723290941188,1.89532,2638.1,2637.9,2.3729]
[1723290941490,3.79068,2638.1,2638.0,0.20014379]
[1723290941690,1.89532,2638.1,2638.0,0.20014379]
[1723290945211,1.8954,2638.0,2637.8,1.131]
[1723290945728,1.89544,2637.9,2637.8,1.131]
[1723290947519,1.89551,2637.8,2637.7,19.56]
[1723290948029,3.79102,2637.8,2637.7,19.56]
[1723290949711,1.89573,2637.5,2637.2,2.2591]
[1723290949911,1.89582,2637.4,2637.2,2.2591]
[1723290950105,1.89595,2637.2,2637.1,19.56]
[1723290950306,1.89595,2637.2,2637.0,9.7491]
[1723290950307,1.89602,2637.1,2637.0,1.131]
[1723290950549,3.79181,2637.3,2637.0,1.131]
[1723290950831,1.89599,2637.2,2637.0,1.131]
[1723290953038,3.79181,2637.3,2637.0,1.131]
[1723290953242,1.89595,2637.2,2637.0,1.131]
[1723290953597,1.89588,2637.3,2637.0,1.131]
[1723290954802,1.89588,2637.3,2637.0,1.47001]
[1723290955001,1.89577,2637.5,2637.2,3.3901]
[1723290955535,3.0,2637.6,2637.4,1.131]
[1723290955742,1.89561,2637.7,2637.4,1.131]
[1723290956117,1.89561,2637.7,2637.4,20.691]
[1723290956443,3.0,2637.8,2637.6,3.3901]
[1723290956598,1.89546,2637.9,2637.6,3.3901]
[1723290956794,1.89556,2637.8,2637.7,0.19405332]
[1723290957031,4.89556,2637.8,2637.7,0.19405332]
[1723290957634,4.25088,2638.2,2637.7,0.19405332]
[1723290957819,2.3556,2638.2,2637.8,1.131]
[1723290958019,1.89542,2638.0,2637.8,1.131]
[1723290958230,1.89542,2638.0,2637.9,0.19391332]
[1723290959541,3.79084,2638.0,2637.9,0.19391332]
[1723290959708,1.89561,2637.7,2637.5,1.131]
[1723290960841,1.89547,2637.9,2637.5,1.131]
[1723290961513,4.8953,2638.1,2637.7,1.131]
[1723290961711,1.8953,2638.1,2637.7,1.131]
[1723290961957,1.8953,2638.1,2637.9,1.131]
[1723290962310,1.89537,2638.0,2637.9,1.131]
[1723290962550,1.8953,2638.1,2637.9,1.131]
[1723290963145,3.79065,2638.1,2637.9,1.131]
[1723290963326,1.8953,2638.1,2637.9,1.131]
[1723290965247,3.79066,2638.1,2637.9,1.131]
[1723290965927,3.79066,2638.1,2637.8,19.56]
[1723290966345,1.8953,2638.1,2637.8,19.56]
[1723290966650,3.79066,2638.1,2637.8,19.56]
[1723290966818,1.8953,2638.1,2637.8,19.56]
[1723290967744,3.79066,2638.1,2637.8,19.56]
[1723290967923,3.79066,2638.1,2637.9,19.56]
[1723290968823,1.89537,2638.0,2637.9,19.56]
[1723290971432,1.89537,2638.0,2637.9,19.75387341]
[1723290973836,1.89537,2638.0,2637.9,0.19387341]
[1723290974362,3.79074,2638.0,2637.9,0.19387341]
[1723290974749,1.89537,2638.0,2637.9,0.19387341]
[1723290979766,1.89537,2638.0,2637.9,19.75387341]
[1723290985861,1.89537,2638.0,2637.9,0.19387341]
[1723290986551,1.89537,2638.0,2637.9,2.56527341]
[1723290991203,6.79053,2638.2,2637.9,2.56527341]
[1723290991700,6.79053,2638.2,2637.9,22.12527341]
[1723290991904,1.89531,2638.1,2637.9,22.12527341]
[1723290997705,1.89531,2638.1,2637.9,2.56527341]
[1723290998297,1.89537,2638.0,2637.9,0.19387341]
[1723291001974,1.8953,2638.1,2637.9,0.19387341]
[1723291002179,4.8953,2638.1,2637.9,0.19387341]
[1723291002682,1.8953,2638.1,2637.9,0.19387341]
[1723291003581,1.8953,2638.1,2637.9,19.75387341]
[1723291005590,3.0,2638.2,2638.0,19.56]
[1723291005926,1.8951,2638.4,2638.1,3.4422]
[1723291006087,1.8951,2638.4,2638.1,3.63601877]
[1723291006290,4.8951,2638.4,2638.1,3.63601877]
[1723291007029,2.48890485,2638.7,2638.4,2.3112]
[1723291007191,1.89492,2638.7,2638.4,2.3112]
[1723291007387,1.89492,2638.7,2638.5,0.19355594]
[1723291008137,4.16462,2639.1,2638.5,1.32455594]
[1723291008318,1.89473,2638.9,2638.7,3.537]
[1723291008830,1.89473,2638.9,2638.8,0.19308439]
[1723291009141,1.89473,2638.9,2638.7,3.537]
[1723291009427,1.89473,2638.9,2638.8,0.19308439]
[1723291009791,1.89473,2638.9,2638.7,3.537]
[1723291009991,3.0,2639.0,2638.8,0.19308439]
[1723291010214,1.89462,2639.1,2638.8,0.19308439]
[1723291010498,1.89462,2639.1,2638.7,3.537]
[1723291010699,1.89462,2639.1,2638.9,1.131]
[1723291011013,1.89462,2639.1,2639.0,0.19294451]
[1723291014131,3.78925,2639.1,2639.0,0.19294451]
[1723291014431,6.738159,2639.1,2639.0,0.19294451]
[1723291014594,6.738159,2639.1,2638.7,19.56]
[1723291014595,1.8948,2638.8,2638.7,19.56]
[1723291014996,3.78952,2638.9,2638.7,19.56]
[1723291015737,1.8948,2638.8,2638.7,19.56]
[1723291016440,1.8948,2638.8,2638.7,19.75315434]
[1723291017331,3.78952,2638.9,2638.7,19.75315434]
[1723291017931,1.8948,2638.8,2638.7,19.75315434]
[1723291018307,1.89474,2638.9,2638.7,19.75315434]
[1723291018516,1.89474,2638.9,2638.7,0.19315434]
[1723291018850,1.89474,2638.9,2638.5,19.56]
[1723291019024,1.89474,2638.9,2638.8,0.19308439]
[1723291019203,1.8948,2638.8,2638.5,19.56]
[1723291021025,1.89494,2638.6,2638.5,19.56]
[1723291021746,1.8948,2638.8,2638.5,19.56]
[1723291022118,1.89487,2638.7,2638.5,19.56]
[1723291023650,1.89494,2638.6,2638.5,19.56]
[1723291028563,4.395862,2638.6,2638.5,19.56]
[1723291028737,7.395862,2638.6,2638.5,19.56]
[1723291030339,1.89515,2638.4,2638.0,20.691]
[1723291030660,3.79029,2638.4,2638.0,20.691]
[1723291030863,1.89514,2638.4,2638.0,20.691]
[1723291031033,1.89514,2638.4,2638.2,1.131]
[1723291031368,1.89514,2638.4,2638.3,0.19300188]
[1723291045391,3.0,2638.6,2638.4,2.4806]
[1723291045559,3.0,2638.6,2638.4,3.6116]
[1723291045765,1.89488,2638.7,2638.5,0.19311791]
[1723291046977,3.0,2638.8,2638.5,0.19311791]
[1723291047177,3.78926,2639.1,2638.7,2.4806]
[1723291047376,3.0,2639.0,2638.7,2.4806]
[1723291047575,1.89461,2639.1,2638.8,0.19299334]
[1723291047887,1.89461,2639.1,2638.8,1.131]
[1723291048094,1.89461,2639.1,2638.9,0.19292339]
[1723291048965,3.78894,2639.3,2639.0,2.3317]
[1723291049286,3.78894,2639.3,2639.0,2.52445107]
[1723291049491,3.0,2639.2,2639.0,2.52445107]
[1723291050054,1.89446,2639.3,2639.0,2.52445107]
[1723291050255,1.89446,2639.3,2639.0,3.65545107]
[1723291051175,3.78895,2639.3,2639.0,3.65545107]
[1723291051585,3.0,2639.2,2639.0,3.65545107]
[1723291052170,1.89446,2639.3,2639.0,3.65545107]
[1723291056399,1.89456,2639.2,2639.0,3.65545107]
[1723291056597,4.89456,2639.2,2639.0,3.65545107]
[1723291056899,0.59377632,2639.6,2639.5,3.78858]
[1723291057101,0.59377632,2639.6,2639.5,7.25128]
[1723291057250,1.8937,2640.4,2639.7,1.8941]
[1723291057453,1.8937,2640.4,2640.2,1.131]
[1723291057854,1.8937,2640.4,2640.3,0.19126228]
[1723291058221,1.89353,2640.6,2640.3,0.19100646]
[1723291058396,1.89353,2640.6,2640.2,1.131]
[1723291058554,1.89364,2640.5,2640.2,1.131]
[1723291058853,4.9183,2640.4,2640.3,0.19100646]
[1723291059049,1.89415,2639.7,2639.6,1.131]
[1723291059792,1.89414,2639.8,2639.6,1.131]
[1723291061385,1.89414,2639.8,2639.7,0.18435544]
[1723291062003,1.89414,2639.8,2639.5,2.3317]
[1723291062205,1.89417,2639.7,2639.5,2.3317]
[1723291062604,1.89401,2639.9,2639.5,2.3317]